﻿Department family,Entity,Date,Expense type,Expense area,Supplier,Transaction number,Amount,VAT registration number
Dept of Health,MHRA,04/06/2018,Assets Under Construction - Plant & Equipment,Operations,Commercial Services UK Ltd,INV-0736,"30,345.80",130597616
Dept of Health,MHRA,04/06/2018,Accommodation Rates,Operations,Hertsmere Borough Council,N002960C,"80,359.00",230640406
Dept of Health,MHRA,04/06/2018,Assets Under Construction - Plant & Equipment,Operations,Lighthouse Instruments LLC,55622,"28,242.50",
Dept of Health,MHRA,04/06/2018,Application Services and Maintenance,Transformation,Accenture (UK) Limited,3003392988,"64,240.80",788629066
Dept of Health,MHRA,04/06/2018,Application Services and Maintenance,Transformation,Accenture (UK) Limited,3003394485,"247,124.20",788629066
Dept of Health,MHRA,04/06/2018,Application Services and Maintenance,Transformation,Accenture (UK) Limited,3003395349,"26,500.01",788629066
Dept of Health,MHRA,04/06/2018,Help desk and end user support,Transformation,IDE Group Manage Limited,5001334,"33,619.99",123385037
Dept of Health,MHRA,04/06/2018,Help desk and end user support,Transformation,IDE Group Manage Limited,5001335,"33,619.99",123385037
Dept of Health,MHRA,04/06/2018,Help desk and end user support,Transformation,IDE Group Manage Limited,5001364,"39,649.99",123385037
Dept of Health,MHRA,04/06/2018,Help desk and end user support,Transformation,IDE Group Manage Limited,5001365,"39,650.00",123385037
Dept of Health,MHRA,04/06/2018,Infrastructure Services and Maintenance,Transformation,Insight Networking Solutions,3889969,"291,198.32",746075129
Dept of Health,MHRA,04/06/2018,Infrastructure Services and Maintenance,Transformation,Insight Networking Solutions,3890004,"281,263.90",746075129
Dept of Health,MHRA,06/06/2018,Assets Under Construction - Clearing Account,Finance & Procurement,XMA Limited,CR73246,"99,958.14",115091937
Dept of Health,MHRA,06/06/2018,Application Services and Maintenance,Transformation,Accenture (UK) Limited,3003394105,"38,665.54",788629066
Dept of Health,MHRA,06/06/2018,Infrastructure Services and Maintenance,Transformation,Exponential-e,340303,"26,920.45",798572653
Dept of Health,MHRA,06/06/2018,Infrastructure Services and Maintenance,Transformation,Redrock Consulting Ltd,7759,"50,807.42",862247715
Dept of Health,MHRA,06/06/2018,Infrastructure Services and Maintenance,Transformation,Redrock Consulting Ltd,7760,"29,407.85",862247715
Dept of Health,MHRA,06/06/2018,Application Services and Maintenance,Transformation,Redrock Consulting Ltd,7761,"25,402.70",862247715
Dept of Health,MHRA,11/06/2018,Application Services and Maintenance,Transformation,Accenture (UK) Limited,3003395929,"36,281.40",788629066
Dept of Health,MHRA,11/06/2018,Application Services and Maintenance,Transformation,Cognizant Worldwide Limited,CW101-0000097289,"61,015.20",123382928
Dept of Health,MHRA,11/06/2018,Application Services and Maintenance,Transformation,Redrock Consulting Ltd,7763,"126,176.22",862247715
Dept of Health,MHRA,13/06/2018,Relocation,Finance & Procurement,Redrock Consulting Ltd,7703,"63,207.53",862247715
Dept of Health,MHRA,13/06/2018,Relocation,Finance & Procurement,Redrock Consulting Ltd,7757,"69,833.90",862247715
Dept of Health,MHRA,13/06/2018,Travel and Subsistence,Finance & Procurement,Clarity Travel Management,MHRA0026,"183,838.84",197694731
Dept of Health,MHRA,13/06/2018,SIAM - Portfolio Services,Transformation,FDM Group ltd,261794-FM,"45,216.00",583540529
Dept of Health,MHRA,13/06/2018,Testing Services,Transformation,Home Office,SR01340,"29,712.00",888816061
Dept of Health,MHRA,14/06/2018,MHRA-administered Seminar Costs,Communications,Glasgows Ltd,15719,"101,883.58",448190633
Dept of Health,MHRA,14/06/2018,Testing Services,Transformation,Home Office,SR01329,"26,016.00",888816061
Dept of Health,MHRA,19/06/2018,Security,Operations,ISS Facility Services Limited,SLINVS/44006855,"50,767.98",945751887
Dept of Health,MHRA,19/06/2018,Software & Licences,Transformation,Oracle Corporation UK Limited,1655648,"101,528.28",391313073
Dept of Health,MHRA,19/06/2018,Infrastructure Services and Maintenance,Transformation,Redrock Consulting Ltd,7725,"68,175.60",862247715
Dept of Health,MHRA,19/06/2018,Infrastructure Services and Maintenance,Transformation,Redrock Consulting Ltd,7767,"68,871.54",862247715
Dept of Health,MHRA,20/06/2018,Networks,Finance & Procurement,XMA Limited,CS70970,"36,626.11",115091937
Dept of Health,MHRA,20/06/2018,Application Services and Maintenance,Transformation,Accenture (UK) Limited,3003396687,"315,713.42",788629066
Dept of Health,MHRA,20/06/2018,Application Services and Maintenance,Transformation,Accenture (UK) Limited,3003396688,"105,867.60",788629066
Dept of Health,MHRA,20/06/2018,Help desk and end user support,Transformation,IDE Group Manage Limited,5001628,"33,619.99",123385037
Dept of Health,MHRA,20/06/2018,Help desk and end user support,Transformation,IDE Group Manage Limited,5001630,"39,650.00",123385037
Dept of Health,MHRA,20/06/2018,Infrastructure Services and Maintenance,Transformation,NTT Data UK Ltd,4011758,"138,788.60",159334590
Dept of Health,MHRA,20/06/2018,"Service, Integration & Management (SIAM)",Transformation,Redrock Consulting Ltd,7768,"47,471.14",862247715
Dept of Health,MHRA,20/06/2018,Application Services and Maintenance,Transformation,Sapient Ltd,51199,"76,890.00",948043217
Dept of Health,MHRA,22/06/2018,Application Services and Maintenance,Transformation,Accenture (UK) Limited,3003397107,"100,425.76",788629066
Dept of Health,MHRA,22/06/2018,Software & Licences,Transformation,Capita IT Services Ltd,6051019682,"28,572.00",618184140
Dept of Health,MHRA,22/06/2018,Infrastructure Services and Maintenance,Transformation,EntServ UK Limited,6058640,"25,722.12",432995915
Dept of Health,MHRA,22/06/2018,Infrastructure Services and Maintenance,Transformation,EntServ UK Limited,6058955,"25,722.12",432995915
Dept of Health,MHRA,25/06/2018,Contracted Out Services Miscellaneous,Finance & Procurement,Cadence Innova Ltd,INV000640,"48,000.00",269535660
Dept of Health,MHRA,25/06/2018,Application Services and Maintenance,Transformation,Accenture (UK) Limited,3003397052,"349,672.26",788629066
Dept of Health,MHRA,25/06/2018,Application Services and Maintenance,Transformation,Accenture (UK) Limited,3003835248,"-46,342.80",788629066
Dept of Health,MHRA,28/06/2018,Water,Operations,Castle Water,TE00067523,"29,423.14",189775040
Dept of Health,MHRA,28/06/2018,Assets Under Construction - Plant & Equipment,Operations,Commercial Services UK Ltd,INV-0744,"73,358.75",130597616
Dept of Health,MHRA,28/06/2018,Electricity,Operations,EDF Energy,4322276,"67,756.48",523041202
Dept of Health,MHRA,28/06/2018,Accommodation Rates,Operations,Hertsmere Borough Council,N002960D,"80,359.00",230640406
Dept of Health,MHRA,28/06/2018,Infrastructure Services and Maintenance,Transformation,Sungard Availability Services (UK) Limited,18003428,"150,000.03",823829709
Dept of Health,MHRA,29/06/2018,Assets Under Construction - Plant & Equipment,Operations,Commercial Services UK Ltd,INV-0737,"43,995.10",130597616
Dept of Health,MHRA,29/06/2018,Networks,Finance & Procurement,XMA Limited,CQ81085,"29,797.94",115091937
Dept of Health,MHRA,29/06/2018,Infrastructure Services and Maintenance,Transformation,Exponential-e,343221,"31,232.63",798572653
